bitfinex/quotes_BTCUSD_20240623
["timestamp","ask_amount","ask_price","bid_price","bid_amount"]
[1719154338163,0.14596992,64303.0,64302.0,0.73671325]
[1719154338591,0.05396992,64303.0,64302.0,0.73671325]
[1719154338729,0.05096992,64303.0,64302.0,0.73671325]
[1719154338934,0.05096992,64303.0,64302.0,0.71671325]
[1719154339129,0.04696992,64303.0,64302.0,0.71671325]
[1719154339772,0.04996992,64303.0,64302.0,0.71671325]
[1719154340441,0.00485,64303.0,64302.0,0.71671325]
[1719154340646,0.04998936,64303.0,64302.0,0.71671325]
[1719154341100,0.04998936,64303.0,64302.0,0.66461325]
[1719154341300,0.04998936,64303.0,64302.0,0.71671325]
[1719154341852,0.04998936,64303.0,64302.0,0.66461325]
[1719154342055,0.04998936,64303.0,64302.0,0.71671325]
[1719154342940,0.04998936,64303.0,64302.0,0.73671325]
[1719154343349,0.04998936,64303.0,64302.0,0.71671325]
[1719154343555,0.00485,64303.0,64302.0,0.71671325]
[1719154343756,0.04926588,64303.0,64302.0,0.73671325]
[1719154343959,0.04926649,64303.0,64302.0,0.73671325]
[1719154345267,0.12869807,64303.0,64302.0,0.73671325]
[1719154345451,0.14942644,64303.0,64302.0,0.73671325]
[1719154345652,0.22869742,64303.0,64302.0,0.73671325]
[1719154345859,0.22869742,64303.0,64302.0,0.71671325]
[1719154346067,0.14942644,64303.0,64302.0,0.71671325]
[1719154346928,0.04936575,64303.0,64302.0,0.89222925]
[1719154347132,0.04936575,64303.0,64302.0,1.20326125]
[1719154348069,0.04636575,64303.0,64302.0,1.20326125]
[1719154348493,0.04536575,64303.0,64302.0,1.20326125]
[1719154348854,0.04536575,64303.0,64302.0,1.20426125]
[1719154349053,0.04536575,64303.0,64302.0,0.66561325]
[1719154349355,0.04536575,64303.0,64302.0,0.73771325]
[1719154349798,0.04536575,64303.0,64302.0,0.71671325]
[1719154349989,0.04319848,64303.0,64302.0,0.73671325]
[1719154350173,0.04319848,64303.0,64302.0,0.73771325]
[1719154350375,0.04319848,64303.0,64302.0,0.71671325]
[1719154350547,0.04319848,64303.0,64302.0,0.73671325]
[1719154351285,0.04319848,64303.0,64302.0,0.68461325]
[1719154351485,0.04319848,64303.0,64302.0,0.73671325]
[1719154351725,0.04319848,64303.0,64302.0,0.66461325]
[1719154351893,0.19871148,64303.0,64302.0,0.71671325]
[1719154352191,0.04319848,64303.0,64302.0,0.72771325]
[1719154352397,0.04419848,64303.0,64302.0,0.73271325]
[1719154352605,0.04419848,64303.0,64302.0,0.71271325]
[1719154352745,0.04419848,64303.0,64302.0,0.73271325]
[1719154352950,0.0414877,64303.0,64302.0,0.73271325]
[1719154353409,0.04157073,64303.0,64302.0,0.73271325]
[1719154353955,0.04157073,64303.0,64302.0,0.72871325]
[1719154354405,0.19708373,64303.0,64302.0,0.72871325]
[1719154354606,0.19700564,64303.0,64302.0,0.72871325]
[1719154355391,0.19600564,64303.0,64302.0,0.72771325]
[1719154355806,0.19600564,64303.0,64302.0,0.72871325]
[1719154356206,0.19615872,64303.0,64302.0,0.72871325]
[1719154356574,0.19615872,64303.0,64302.0,0.70871325]
[1719154358362,0.50718572,64303.0,64302.0,0.65661325]
[1719154358530,0.50718572,64303.0,64302.0,0.70871325]
[1719154359395,0.46739,64303.0,64302.0,0.70871325]
[1719154359660,0.50542079,64303.0,64302.0,0.70871325]
[1719154361192,0.50542079,64303.0,64302.0,0.72871325]
[1719154361565,0.50542079,64303.0,64302.0,0.70871325]
[1719154361801,0.50542079,64303.0,64302.0,0.72871325]
[1719154362458,0.46739,64303.0,64302.0,0.72871325]
[1719154362684,0.50621943,64303.0,64302.0,0.72871325]
[1719154362890,0.54504887,64303.0,64302.0,0.72871325]
[1719154363063,0.50621944,64303.0,64302.0,0.70871325]
[1719154363264,0.50621944,64303.0,64302.0,0.72871325]
[1719154363498,0.50621944,64303.0,64302.0,0.70871325]
[1719154364302,0.50621944,64303.0,64302.0,0.65661325]
[1719154364598,0.50621944,64303.0,64302.0,0.70871325]
[1719154365526,0.46739,64303.0,64302.0,0.70871325]
[1719154365660,0.50515923,64303.0,64302.0,0.70871325]
[1719154368126,0.50515923,64303.0,64302.0,0.61551325]
[1719154368397,1.03598623,64303.0,64302.0,0.43921325]
[1719154368646,1.34701323,64303.0,64302.0,0.43921325]
[1719154368915,1.44726076,64303.0,64302.0,0.43921325]
[1719154369623,1.5202831,64303.0,64302.0,0.43921325]
[1719154370190,1.5202831,64303.0,64302.0,0.43821325]
[1719154370481,1.5262831,64303.0,64302.0,0.43821325]
[1719154371016,1.59610084,64303.0,64302.0,0.43821325]
[1719154371151,1.5342831,64303.0,64302.0,0.43821325]
[1719154371936,1.53391813,64303.0,64302.0,0.43821325]
[1719154372206,1.53391813,64303.0,64302.0,0.43271649]
[1719154372616,1.53391813,64303.0,64302.0,0.43811379]
[1719154374969,1.49608762,64303.0,64302.0,0.43811379]
[1719154375222,1.53397696,64303.0,64302.0,0.43811379]
[1719154376398,1.423244,64303.0,64302.0,0.43811379]
[1719154376657,1.53384417,64303.0,64302.0,0.43811379]
[1719154376890,1.60363934,64303.0,64302.0,0.43811379]
[1719154378933,1.62317883,64303.0,64302.0,0.43811379]
[1719154379416,1.62317883,64303.0,64302.0,0.43271649]
[1719154379938,1.62317883,64303.0,64302.0,0.43811379]
[1719154380701,1.33311799,64303.0,64302.0,0.43811379]
[1719154381177,1.29640632,64303.0,64302.0,0.43811379]
[1719154381727,1.56662391,64303.0,64302.0,0.43811379]
[1719154381954,1.56662391,64303.0,64302.0,0.43271649]
[1719154382219,1.56662391,64303.0,64302.0,0.43811379]
[1719154382466,1.97494742,64303.0,64302.0,0.43811379]
[1719154382663,1.86669911,64303.0,64302.0,0.43811379]
[1719154382881,1.90406799,64303.0,64302.0,0.43811379]
[1719154383101,1.90302253,64303.0,64302.0,0.43811379]
[1719154383864,1.8305463,64303.0,64302.0,0.43811379]
[1719154384088,1.90288229,64303.0,64302.0,0.43811379]
[1719154384720,1.90288229,64303.0,64302.0,0.23271649]
[1719154384923,1.90288229,64303.0,64302.0,0.23811379]
[1719154385145,1.96663673,64303.0,64302.0,0.23271649]
[1719154385543,1.92816958,64303.0,64302.0,0.23811379]
[1719154385788,2.25919658,64303.0,64302.0,0.08555267]
[1719154386052,2.25919658,64303.0,64302.0,0.08015537]
[1719154386998,2.25800399,64303.0,64302.0,0.08015537]
[1719154387227,2.25200399,64303.0,64302.0,0.08015537]
[1719154387700,2.26600399,64303.0,64302.0,0.08015537]
[1719154387930,2.25800399,64303.0,64302.0,0.08015537]
[1719154388158,2.27200399,64303.0,64302.0,0.08015537]
[1719154388632,2.24400399,64303.0,64302.0,0.08015537]
[1719154389145,2.27200399,64303.0,64302.0,0.08015537]
[1719154389419,2.27200399,64303.0,64302.0,0.00015537]
[1719154390184,2.27109767,64303.0,64302.0,0.00015537]
[1719154390373,2.19978761,64303.0,64302.0,0.00015537]
[1719154390593,2.23601296,64303.0,64302.0,0.00015537]
[1719154390817,2.27109928,64303.0,64302.0,0.00015537]
[1719154391061,1.79458944,64296.0,64295.0,0.009361]
[1719154391301,1.79458944,64296.0,64292.0,0.00158539]
[1719154391302,0.76376644,64293.0,64292.0,0.00158539]
[1719154391544,1.90452744,64293.0,64292.0,0.00158539]
[1719154391772,1.9974174,64293.0,64292.0,0.00158539]
[1719154392269,1.90452744,64293.0,64292.0,0.00158539]
[1719154392464,1.9974174,64293.0,64292.0,0.00158539]
[1719154392687,2.0114174,64293.0,64292.0,0.00158539]
[1719154393168,1.94055166,64293.0,64292.0,0.00158539]
[1719154393371,1.84769081,64293.0,64292.0,0.00158539]
[1719154393581,2.31978541,64293.0,64292.0,3.9e-07]
[1719154393800,2.31978541,64293.0,64254.0,0.04658964]
[1719154393801,0.1,64255.0,64254.0,0.04658964]
[1719154394051,0.1,64255.0,64251.0,0.12942485]
[1719154394052,0.53066544,64252.0,64251.0,0.04658964]
[1719154394255,0.53066544,64252.0,64250.0,1.0008]
[1719154394256,0.84195144,64251.0,64250.0,1.0008]
[1719154394465,1.25323044,64251.0,64250.0,1.0]
[1719154394690,1.25323044,64251.0,64250.0,0.99]
[1719154394888,1.28993012,64251.0,64250.0,0.99]
[1719154395124,1.22617568,64251.0,64250.0,0.99]
[1719154395353,0.97865112,64251.0,64250.0,0.99]
[1719154395762,1.28993012,64251.0,64250.0,0.99]
[1719154395965,1.28850166,64251.0,64250.0,0.98687882]
[1719154396548,1.28850166,64251.0,64250.0,1.27153994]
[1719154396549,0.1,64251.0,64250.0,1.27153994]
[1719154396754,0.1,64251.0,64250.0,1.48823994]
[1719154397011,0.00015564,64254.0,64253.0,0.2]
[1719154397186,0.1,64260.0,64257.0,0.08]
[1719154397384,0.46686,64259.0,64258.0,0.15256112]
[1719154397598,0.8781,64259.0,64258.0,0.15850313]
[1719154397807,0.1,64260.0,64258.0,0.15850313]
[1719154397808,0.1,64260.0,64258.0,0.21060313]
[1719154397939,0.46684,64262.0,64261.0,0.2]
[1719154398141,0.155614,64262.0,64261.0,0.40466112]
[1719154398384,0.155614,64262.0,64261.0,0.35800486]
[1719154398584,0.155614,64262.0,64261.0,0.41010486]
[1719154398789,0.00015565,64262.0,64261.0,0.41010486]
[1719154398990,0.00015565,64262.0,64261.0,0.50100486]
[1719154400375,0.00015565,64262.0,64261.0,0.64680486]
[1719154400614,0.00015565,64262.0,64261.0,0.62680486]
[1719154400804,0.00015565,64262.0,64261.0,0.57470486]
[1719154401009,0.00015565,64262.0,64261.0,0.57570486]
[1719154401343,0.00015565,64262.0,64261.0,0.57470486]
[1719154402179,0.00015565,64262.0,64261.0,0.75031986]
[1719154402390,0.00015565,64262.0,64261.0,0.94218042]
[1719154402590,0.00015565,64262.0,64261.0,1.09779542]
[1719154404019,0.00115565,64262.0,64261.0,1.40902542]
[1719154405294,0.00115565,64262.0,64261.0,1.60902542]
[1719154405499,0.00115565,64262.0,64261.0,2.10725542]
[1719154406367,0.46604476,64286.0,64282.0,0.08]
[1719154406656,0.155557,64285.0,64283.0,0.15256112]
[1719154406886,0.155557,64285.0,64283.0,0.15798216]
[1719154407937,0.37485244,64289.0,64287.0,0.2]
[1719154407938,0.311098,64289.0,64287.0,0.2]
[1719154408168,0.466645,64289.0,64288.0,0.15256112]
[1719154408309,0.1,64289.0,64288.0,0.157977]
[1719154409364,0.114,64289.0,64288.0,0.177977]
[1719154409594,0.014,64289.0,64288.0,0.177977]
[1719154410044,0.014,64289.0,64288.0,0.30853195]
[1719154410235,0.014,64289.0,64288.0,0.46408195]
[1719154411333,0.022,64289.0,64288.0,0.46408195]
[1719154411777,0.155533,64295.0,64288.0,0.33368195]
[1719154411934,0.466599,64295.0,64294.0,0.08]
[1719154412115,0.255533,64295.0,64294.0,0.23256112]
[1719154412315,0.255533,64295.0,64294.0,0.23797081]
[1719154412715,0.255533,64295.0,64294.0,0.23812576]
[1719154413286,0.890665,64295.0,64294.0,0.23912576]
[1719154413759,0.890665,64295.0,64294.0,0.23371607]
[1719154414934,0.904665,64295.0,64294.0,0.23371607]
[1719154416575,1.27948544,64295.0,64294.0,0.15371607]
[1719154417959,1.27948544,64295.0,64294.0,0.14871607]
[1719154418399,1.31612664,64295.0,64294.0,0.14871607]
[1719154418658,1.31601087,64295.0,64294.0,0.14871607]
[1719154418863,1.31601103,64295.0,64294.0,0.14871607]
[1719154419082,1.31601103,64295.0,64294.0,0.00115495]
[1719154419703,1.42991103,64295.0,64294.0,0.00115495]
[1719154420534,1.42998339,64295.0,64294.0,0.00115495]
[1719154421539,1.42998339,64295.0,64294.0,0.00115498]
[1719154423117,1.44998339,64295.0,64294.0,0.00115498]
[1719154423335,1.42998339,64295.0,64294.0,0.00115498]
[1719154423539,1.39338544,64295.0,64294.0,0.00115498]
[1719154423667,1.43091999,64295.0,64294.0,0.00115498]
[1719154423864,1.45091999,64295.0,64294.0,0.00115498]
[1719154424067,1.43091999,64295.0,64294.0,0.00115498]
[1719154426774,1.33633124,64295.0,64294.0,0.00115498]
[1719154426999,1.29866183,64295.0,64294.0,0.00115498]
[1719154427214,1.33654541,64295.0,64294.0,0.00115498]
[1719154429692,1.29866183,64295.0,64294.0,0.00115498]
[1719154429893,1.43114015,64295.0,64294.0,0.00115498]
[1719154430090,1.35741977,64295.0,64294.0,0.00115498]
[1719154430306,1.43114038,64295.0,64294.0,0.00115498]
[1719154430868,1.83350638,64295.0,64294.0,0.00115498]
[1719154431466,1.83350638,64295.0,64294.0,1e-08]
[1719154431467,2.26967238,64295.0,64294.0,1e-08]
[1719154432042,2.00814347,64295.0,64294.0,1e-08]
[1719154432416,2.16367647,64295.0,64294.0,1e-08]
[1719154432994,2.16068625,64295.0,64294.0,1e-08]
[1719154433959,2.26068625,64295.0,64294.0,1e-08]
[1719154434814,2.45952123,64295.0,64294.0,1e-08]
[1719154434971,2.45952123,64295.0,64294.0,0.00015498]
[1719154435177,2.61324039,64295.0,64294.0,0.00015498]
[1719154435380,2.61324039,64295.0,64273.0,0.08]
[1719154435381,1.089084,64274.0,64273.0,0.08]
[1719154435617,1.12631216,64274.0,64273.0,0.23256112]
[1719154435865,1.22631216,64274.0,64273.0,0.23256112]
[1719154436026,1.22570413,64274.0,64273.0,0.23256112]
[1719154436430,1.189084,64274.0,64273.0,0.23256112]
[1719154436694,1.22570361,64274.0,64273.0,0.23256112]
[1719154438948,1.2258592,64274.0,64273.0,0.23256112]
[1719154439146,1.22498184,64274.0,64273.0,0.23256112]
[1719154439344,1.22598184,64274.0,64273.0,0.23256112]
[1719154440991,1.22614169,64274.0,64273.0,0.46236112]
[1719154441193,1.22614169,64274.0,64273.0,0.46329612]
[1719154441401,1.22614169,64274.0,64273.0,0.46829922]
[1719154441568,1.19023959,64274.0,64273.0,0.46829922]
[1719154441771,1.22635134,64274.0,64273.0,0.46829922]
[1719154442781,1.22635134,64274.0,64273.0,0.46329612]
[1719154443030,1.22635134,64274.0,64273.0,0.46829922]
[1719154444539,0.60401734,64274.0,64273.0,0.46829922]
[1719154444740,0.60372168,64274.0,64273.0,0.46829922]
[1719154444947,0.56790559,64274.0,64273.0,0.46329612]
[1719154445149,0.91488868,64274.0,64273.0,0.46329612]
[1719154445347,0.91488868,64274.0,64273.0,0.46829922]
[1719154445560,0.91488868,64274.0,64273.0,0.46329612]
[1719154445728,0.91488868,64274.0,64273.0,0.46829922]
[1719154447826,0.91382866,64274.0,64273.0,0.46829922]
[1719154448373,1.22499566,64274.0,64273.0,0.37049922]
[1719154449096,1.22499566,64274.0,64273.0,0.23349612]
[1719154449592,1.22499566,64274.0,64273.0,0.23849922]
[1719154449807,1.33149566,64274.0,64273.0,0.23849922]
[1719154450012,1.39879629,64274.0,64273.0,0.23349612]
[1719154450593,1.39879629,64274.0,64257.0,0.03624556]
[1719154450594,1.089305,64261.0,64260.0,0.1018]
[1719154450790,1.089305,64261.0,64260.0,0.25436112]
[1719154451006,1.22160518,64261.0,64260.0,0.25937661]
[1719154451183,1.06599018,64261.0,64260.0,0.25937661]
[1719154451383,1.22160518,64261.0,64260.0,0.25937661]
[1719154451586,1.22160518,64261.0,64260.0,0.25436112]
[1719154451840,1.22160518,64261.0,64260.0,0.25937661]
[1719154452322,1.23260518,64261.0,64260.0,0.25937661]
[1719154452545,1.22160518,64261.0,64260.0,0.25937661]
[1719154452991,1.23360518,64261.0,64260.0,0.25937661]
[1719154453228,1.60858962,64261.0,64260.0,0.00501549]
[1719154453726,1.15312944,64257.0,64256.0,0.2]
[1719154453941,1.189375,64257.0,64256.0,0.2]
[1719154454148,1.25464101,64257.0,64256.0,0.2050193]
[1719154454356,1.22104149,64257.0,64256.0,0.3374193]
[1719154454464,1.22104149,64257.0,64256.0,0.4392193]
[1719154455074,1.59604593,64257.0,64256.0,0.2050193]
[1719154455346,1.60204593,64257.0,64256.0,0.2050193]
[1719154455490,1.60287264,64257.0,64256.0,0.2050193]
[1719154456034,1.60287264,64257.0,64256.0,0.35758042]
[1719154456773,1.57037944,64257.0,64256.0,0.35758042]
[1719154456978,1.61030313,64257.0,64256.0,0.35758042]
[1719154457174,1.84740313,64257.0,64256.0,0.0050193]
[1719154457552,1.15323044,64251.0,64250.0,0.98687882]
[1719154457716,1.28615413,64251.0,64250.0,1.13943994]
[1719154457919,1.28615413,64251.0,64250.0,1.14446496]
[1719154458162,1.28596693,64251.0,64250.0,1.14446496]
[1719154459639,1.28596693,64251.0,64250.0,0.99190384]
[1719154459640,1.59724593,64251.0,64250.0,0.99190384]
[1719154459851,1.56432224,64251.0,64250.0,0.99190384]
[1719154460052,1.66518878,64251.0,64250.0,0.99190384]
[1719154460283,1.61814872,64251.0,64250.0,0.99190384]
[1719154460482,1.59814872,64251.0,64250.0,0.99190384]
[1719154460885,2.02372461,64251.0,64250.0,0.99190384]
[1719154461093,2.51306121,64251.0,64250.0,0.98190384]
[1719154461293,2.51306121,64251.0,64250.0,0.97990384]
[1719154461497,2.39117532,64251.0,64250.0,0.97990384]
[1719154461818,2.3151592,64251.0,64250.0,0.97990384]
[1719154462038,1.5926012,64251.0,64250.0,0.97990384]
[1719154462279,1.54412531,64251.0,64250.0,0.97990384]
[1719154462493,1.86040431,64251.0,64250.0,0.97990384]
[1719154462900,1.86090634,64251.0,64250.0,0.97990384]
[1719154463107,1.84090634,64251.0,64250.0,0.97990384]
[1719154463315,1.82757783,64251.0,64250.0,0.97990384]
[1719154463487,1.85977058,64251.0,64250.0,0.97990384]
[1719154463900,1.86577058,64251.0,64250.0,0.97990384]
[1719154465260,2.32960372,64251.0,64250.0,0.97990384]
[1719154465460,1.86577058,64251.0,64250.0,0.93326837]
[1719154465751,1.86577058,64251.0,64250.0,0.92798213]
[1719154465956,1.83257783,64251.0,64250.0,0.92798213]
[1719154466130,1.86481358,64251.0,64250.0,0.92798213]
[1719154468849,1.92349513,64251.0,64250.0,0.92798213]
[1719154469839,2.07604927,64251.0,64250.0,0.92798213]
[1719154470468,2.38732827,64251.0,64250.0,0.92798213]
[1719154470701,1.92349513,64251.0,64250.0,0.92798213]
[1719154471244,2.23477413,64251.0,64250.0,0.92798213]
[1719154471908,2.2346503,64251.0,64250.0,0.92798213]
[1719154472475,2.46708217,64251.0,64250.0,0.92798213]
[1719154472907,2.43497063,64251.0,64250.0,0.92798213]
[1719154473660,2.58773201,64251.0,64250.0,0.92891713]
[1719154473866,2.58858201,64251.0,64250.0,0.92891713]
[1719154474986,2.40338876,64251.0,64250.0,0.92891713]
[1719154475182,2.43601562,64251.0,64250.0,0.92891713]
[1719154478183,2.20338876,64251.0,64250.0,0.92891713]
[1719154478314,2.30336647,64251.0,64250.0,0.92891713]
[1719154478521,1.75498747,64251.0,64250.0,0.92891713]
[1719154478739,1.62869848,64251.0,64250.0,0.92891713]
[1719154480258,1.6961674,64251.0,64250.0,0.92891713]
[1719154481194,1.67601212,64251.0,64250.0,0.92891713]
[1719154481397,1.2972691,64251.0,64250.0,0.92891713]
[1719154481777,1.32947766,64251.0,64250.0,1.08147825]
[1719154481977,1.29725739,64251.0,64250.0,1.08147825]
[1719154484302,1.29963043,64251.0,64250.0,1.08147825]
[1719154485268,1.3693477,64251.0,64250.0,1.08147825]
[1719154485474,1.3693477,64251.0,64250.0,0.92891713]
[1719154487443,1.3716716,64251.0,64250.0,0.92891713]
[1719154489177,1.3916716,64251.0,64250.0,0.92891713]
[1719154489330,1.7029506,64251.0,64250.0,0.92891713]
[1719154490281,1.59632783,64251.0,64250.0,0.92891713]
[1719154490420,1.70178897,64251.0,64250.0,0.92891713]
[1719154490626,1.59632783,64251.0,64250.0,0.92891713]
[1719154490823,1.70178511,64251.0,64250.0,0.92891713]
[1719154491654,1.68178511,64251.0,64250.0,0.92891713]
[1719154492551,1.70178511,64251.0,64250.0,0.92891713]
[1719154492755,1.68178511,64251.0,64250.0,0.92891713]
[1719154492955,1.70178511,64251.0,64250.0,0.92891713]
[1719154493316,1.59632783,64251.0,64250.0,0.92891713]
[1719154493510,1.7032781,64251.0,64250.0,0.92891713]
[1719154494218,1.74963048,64251.0,64250.0,0.92891713]
[1719154494620,1.72963048,64251.0,64250.0,0.92891713]
[1719154495045,1.72963048,64251.0,64250.0,1.15441713]
[1719154495046,1.3719991,64251.0,64250.0,1.15441713]
[1719154496177,1.41835148,64251.0,64250.0,1.15441713]
[1719154496616,1.41841135,64251.0,64250.0,1.15441713]
[1719154497026,1.3719991,64251.0,64250.0,1.15441713]
[1719154497183,1.44161748,64251.0,64250.0,1.15441713]
[1719154498229,1.46482361,64251.0,64250.0,1.15441713]
[1719154499182,1.3719991,64251.0,64250.0,1.15441713]
[1719154499456,1.3729025,64251.0,64250.0,1.15441713]
[1719154499620,1.3016213,64251.0,64250.0,1.15441713]
[1719154499821,1.37323397,64251.0,64250.0,1.15441713]
[1719154500051,1.3366615,64251.0,64250.0,1.15441713]
[1719154500252,1.45278455,64251.0,64250.0,1.30697825]
[1719154500416,1.48935702,64251.0,64250.0,1.30697825]
[1719154500620,1.37323397,64251.0,64250.0,1.30697825]
[1719154501044,1.37305294,64251.0,64250.0,0.92891713]
[1719154501247,1.30152829,64251.0,64250.0,0.92891713]
[1719154501453,1.52572636,64251.0,64250.0,0.92891713]
[1719154501681,1.52572636,64251.0,64250.0,1.30697825]
[1719154501834,0.99801886,64251.0,64250.0,1.30697825]
[1719154502035,1.05440812,64251.0,64250.0,1.30697825]
[1719154502235,1.0907866,64251.0,64250.0,1.30697825]
[1719154503321,0.9978246,64251.0,64250.0,1.30697825]
[1719154503523,1.09082087,64251.0,64250.0,1.30697825]
[1719154504105,1.09082087,64251.0,64250.0,1.38697825]
[1719154504106,0.6865456,64251.0,64250.0,1.38697825]
[1719154504533,0.75630079,64251.0,64250.0,1.38697825]
[1719154505149,0.7562966,64251.0,64250.0,1.38697825]
[1719154505362,0.42751367,64255.0,64250.0,1.16147825]
[1719154505363,0.06150559,64252.0,64250.0,1.16147825]
[1719154505561,0.04650674,64253.0,64251.0,0.15256112]
[1719154505737,0.155634,64253.0,64252.0,0.2255]
[1719154505937,0.155634,64253.0,64252.0,0.38308423]
[1719154507522,0.566903,64253.0,64252.0,0.38308423]
[1719154507747,0.255634,64253.0,64252.0,0.38308423]
[1719154508677,0.262634,64253.0,64252.0,0.38308423]
[1719154508884,0.262634,64253.0,64252.0,0.38323905]
[1719154509083,0.115,64253.0,64252.0,0.53463905]
[1719154509286,0.015,64253.0,64252.0,0.69027605]
[1719154509484,0.015,64253.0,64252.0,1.03779561]
[1719154509665,0.015,64253.0,64252.0,1.03775481]
[1719154510067,0.007,64253.0,64252.0,1.03675481]
[1719154510485,0.1,64259.0,64258.0,0.28]
[1719154510686,0.1,64259.0,64258.0,0.59097851]
[1719154510908,0.1,64259.0,64258.0,0.61097851]
[1719154511112,0.1,64261.0,64259.0,0.1012]
[1719154511312,0.1,64261.0,64260.0,0.46970565]
[1719154511514,0.1,64261.0,64260.0,0.33408865]
[1719154511683,0.1,64261.0,64260.0,0.33097661]
[1719154512070,0.1,64261.0,64260.0,0.33113143]
[1719154512331,0.1,64261.0,64260.0,0.48674843]
[1719154512531,0.1,64263.0,64262.0,0.4012]
[1719154512739,0.1,64265.0,64264.0,0.2472]
[1719154512948,0.1,64265.0,64264.0,0.3847728]
[1719154513149,0.1,64265.0,64264.0,0.4047728]
[1719154513384,0.1,64265.0,64264.0,0.40492762]
[1719154514156,0.1,64265.0,64264.0,0.38492762]
[1719154514514,0.1,64265.0,64264.0,0.40492762]
[1719154515149,0.1,64265.0,64264.0,0.38492762]
[1719154515373,0.02427371,64265.0,64264.0,0.17772762]
[1719154515591,0.255592,64271.0,64270.0,0.28]
[1719154515789,0.12512139,64271.0,64270.0,0.43256112]
[1719154516009,0.12512139,64271.0,64270.0,0.65976112]
[1719154516342,0.12512139,64271.0,64270.0,0.6649219]
[1719154516774,0.12512148,64271.0,64270.0,0.6649219]
[1719154516988,0.28071248,64271.0,64270.0,0.6649219]
[1719154517326,0.255591,64271.0,64270.0,0.6649219]
[1719154517523,0.28066341,64271.0,64270.0,0.6649219]
[1719154517945,0.28069181,64271.0,64270.0,0.6649219]
[1719154518146,1.21423781,64271.0,64270.0,0.5637219]
[1719154518527,1.21423781,64271.0,64270.0,0.5647219]
[1719154520646,1.21526309,64271.0,64270.0,0.5647219]
[1719154521964,1.21526309,64271.0,64270.0,0.4387219]
[1719154522146,1.61019953,64271.0,64270.0,0.00616078]
[1719154522343,1.61019953,64271.0,64270.0,0.00115482]
[1719154522344,1.82859953,64271.0,64270.0,0.00115482]
[1719154522546,1.93574524,64271.0,64270.0,0.00115482]
[1719154522750,2.24692724,64271.0,64270.0,0.00115482]
[1719154522975,2.29327153,64271.0,64270.0,0.00115482]
[1719154523172,2.20058296,64271.0,64270.0,0.00115482]
[1719154523381,2.31544368,64271.0,64270.0,0.00115482]
[1719154523586,2.31540991,64271.0,64270.0,0.00115482]
[1719154523782,2.21358296,64271.0,64270.0,0.00215482]
[1719154524030,2.41358296,64271.0,64270.0,0.00215482]
[1719154524215,2.39958296,64271.0,64270.0,0.00115482]
[1719154524505,2.21358296,64271.0,64270.0,0.00215482]
[1719154524884,2.21358296,64271.0,64270.0,0.00115482]
[1719154525496,2.22758296,64271.0,64270.0,0.00115482]
[1719154526035,2.21358296,64271.0,64270.0,0.00115482]
[1719154526394,2.22758296,64271.0,64270.0,0.00115482]
[1719154526783,2.16934879,64271.0,64270.0,0.00115482]
[1719154526984,2.2325128,64271.0,64270.0,0.00115482]
[1719154527228,2.23251248,64271.0,64270.0,0.00115482]
[1719154529882,2.2330082,64271.0,64270.0,0.00115482]
[1719154533022,2.14165544,64271.0,64270.0,0.00115482]
[1719154533225,2.23292967,64271.0,64270.0,0.00115482]
[1719154534242,2.34883283,64271.0,64270.0,0.00115482]
[1719154535442,2.23292967,64271.0,64270.0,0.00115482]
[1719154536220,2.23417743,64271.0,64270.0,0.00115482]
[1719154536625,2.23417756,64271.0,64270.0,0.00115482]
[1719154536990,1.92299556,64271.0,64270.0,0.00115482]
[1719154537367,1.80053402,64271.0,64270.0,0.00115482]
[1719154537550,1.68459556,64271.0,64270.0,0.00115482]
[1719154537916,1.77735218,64271.0,64270.0,0.00115482]
[1719154538719,1.77735218,64271.0,64270.0,0.15371594]
[1719154538720,1.46617018,64271.0,64270.0,0.15371594]
[1719154539055,1.35604617,64271.0,64270.0,0.15868344]
[1719154539619,1.34204617,64271.0,64270.0,0.15868344]
[1719154539989,1.34204617,64271.0,64270.0,0.28308344]
[1719154539990,0.92050024,64271.0,64270.0,0.28308344]
[1719154540194,0.93450024,64271.0,64270.0,0.28408344]
[1719154540399,0.93450024,64271.0,64270.0,0.37988344]
[1719154541020,0.92050024,64271.0,64270.0,0.37888344]
[1719154541216,0.92050024,64271.0,64270.0,0.37988344]
[1719154541217,0.93450024,64271.0,64270.0,0.37988344]
[1719154541909,0.92050024,64271.0,64270.0,0.37988344]
[1719154542323,0.896955,64271.0,64270.0,0.37988344]
[1719154542617,0.92633769,64271.0,64270.0,0.37988344]
[1719154542827,0.92133769,64271.0,64270.0,0.37988344]
[1719154543019,0.91233769,64271.0,64270.0,0.37888344]
[1719154543224,0.91233769,64271.0,64270.0,0.37988344]
[1719154543458,0.91833769,64271.0,64270.0,0.37988344]
[1719154543786,0.91233769,64271.0,64270.0,0.37888344]
[1719154544132,0.91833769,64271.0,64270.0,0.37988344]
[1719154544688,0.91833769,64271.0,64270.0,0.37888344]
[1719154544689,0.91233769,64271.0,64270.0,0.37888344]
[1719154544929,0.91233769,64271.0,64270.0,0.37988344]
[1719154545106,0.91833769,64271.0,64270.0,0.37988344]
[1719154545524,0.888955,64271.0,64270.0,0.37988344]
[1719154545739,0.91724558,64271.0,64270.0,0.37988344]
[1719154546085,0.883955,64271.0,64270.0,0.37988344]
[1719154546288,0.91224558,64271.0,64270.0,0.37988344]
[1719154546514,0.91124558,64271.0,64270.0,0.37888344]
[1719154547134,0.91124558,64271.0,64270.0,0.37988344]
[1719154547135,0.91724558,64271.0,64270.0,0.37988344]
[1719154547562,0.91124558,64271.0,64270.0,0.37888344]
[1719154547889,0.91724558,64271.0,64270.0,0.37988344]
[1719154548870,0.888955,64271.0,64270.0,0.37988344]
[1719154549256,0.60696893,64271.0,64270.0,0.37988344]
[1719154549421,0.29578693,64271.0,64270.0,0.39988344]
[1719154549997,0.14019593,64271.0,64270.0,0.39988344]
[1719154550267,0.04019593,64271.0,64270.0,0.86666344]
[1719154550473,0.04019593,64271.0,64270.0,1.214096]
[1719154551078,0.005,64271.0,64270.0,1.31374118]
[1719154551379,0.155567,64281.0,64270.0,1.31374118]
[1719154551380,0.155567,64281.0,64280.0,0.5134]
[1719154551578,0.28456768,64281.0,64280.0,0.67091909]
[1719154551733,0.255567,64281.0,64280.0,0.67091909]
[1719154551917,0.2845679,64281.0,64280.0,0.67091909]
[1719154552739,0.2845679,64281.0,64280.0,0.69107391]
[1719154553160,0.5957009,64281.0,64280.0,0.67107391]
[1719154553562,0.2845679,64281.0,64280.0,0.67107391]
[1719154554220,0.3055679,64281.0,64280.0,0.67307391]
[1719154555141,0.30504102,64281.0,64280.0,0.67307391]
[1719154555310,0.33351919,64281.0,64280.0,0.67307391]
[1719154555469,0.64465219,64281.0,64280.0,0.67307391]
[1719154555656,0.61617817,64281.0,64280.0,0.67307391]
[1719154556053,0.92731117,64281.0,64280.0,0.35967391]
[1719154556417,1.23844417,64281.0,64280.0,0.35967391]
[1719154558191,1.23576738,64281.0,64280.0,0.35967391]